[Event "Torneo Interdepartamental 2020"]
[Site "Punta del Este"]
[Date "2020.11.02"]
[Round "5.9"]
[White "Barla, Rafael"]
[Black "Barboza, Mauro"]
[Result "1-0"]
[ECO "D02"]
[WhiteElo "1836"]
[BlackElo "1874"]
[Annotator "NA"]
[PlyCount "75"]
[EventDate "2020.10.31"]
[EventType "team-tourn"]
[EventCountry "URU"]
[SourceTitle "playchess.com"]
[Source "ChessBase"]
[SourceQuality "1"]
[TimeControl "3600+30"]

1. d4 {[%emt 0:00:00]} Nf6 {[%emt 0:02:22]} 2. Nf3 {[%emt 0:00:00]} d5 {[%emt 0:00:26]} 3. Bf4 {[%emt 0:00:45]} c6 {[%emt 0:01:37]} 4. e3 {[%emt 0:00:40]} e6 {[%emt 0:01:55]} 5. Bd3 {[%emt 0:01:17]} Nbd7 6. Nbd2 a6 {[%emt 0:01:24]} 7. h3 {[%emt 0:01:12]} b5 {[%emt 0:01:21]} 8. O-O {[%emt 0:00:10]} Be7 {[%emt 0:00:12]} 9. c3 {[%emt 0:00:18]} Bb7 {[%emt 0:00:35]} 10. b4 {[%emt 0:04:52]} O-O {[%emt 0:01:10]} 11. a3 {[%emt 0:04:02]} Re8 {[%emt 0:03:52]} 12. Qc2 {[%emt 0:01:30]} Nf8 {[%emt 0:03:41]} 13. Ne5 {[%emt 0:01:29]} Ng6 {[%emt 0:05:49]} 14. Bh2 {[%emt 0:00:27]} Nd7 {[%emt 0:01:44]} 15. f4 {[%emt 0:01:17]} f5 {[%emt 0:00:46]} 16. g4 {[%emt 0:11:31]} Ngxe5 {[%emt 0:03:25]} 17. fxe5 {[%emt 0:00:29]} g6 {[%emt 0:00:07]} 18. gxf5 {[%emt 0:00:50]} exf5 {[%emt 0:00:39]} 19. Nf3 {[%emt 0:02:10]} Nf8 {[%emt 0:00:59]} 20. Qg2 {[%emt 0:00:32]} Bc8 {[%emt 0:00:55]} 21. Bf4 {[%emt 0:00:24]} Ne6 {[%emt 0:00:42]} 22. Bh6 {[%emt 0:01:37]} Ng7 {[%emt 0:00:59]} 23. Bxg7 {[%emt 0:06:45]} Kxg7 24. Kf2 Bd7 {[%emt 0:09:43]} 25. Rg1 {[%emt 0:01:09]} a5 {[%emt 0:00:30]} 26. Qg3 {[%emt 0:07:22]} Be6 {[%emt 0:08:28]} 27. Qf4 {[%emt 0:02:54]} axb4 {[%emt 0:00:40]} 28. cxb4 {[%emt 0:00:59]} Bf7 {[%emt 0:01:17]} 29. h4 {[%emt 0:00:55]} Kh8 {[%emt 0:00:30]} 30. h5 {[%emt 0:02:57]} Rg8 {[%emt 0:00:56]} 31. hxg6 {[%emt 0:01:02]} Bxg6 {[%emt 0:05:57]} 32. Bxf5 {[%emt 0:04:46]} Bxf5 {[%emt 0:05:07]} 33. Qxf5 {[%emt 0:02:33]} Rxg1 {[%emt 0:00:25]} 34. Rxg1 {[%emt 0:03:25]} Rxa3 {[%emt 0:00:24]} 35. Ng5 {[%emt 0:02:15]} Bxg5 {[%emt 0:01:24]} 36. Rxg5 {[%emt 0:00:12]} Ra7 {[%emt 0:03:43]} 37. e6 {[%emt 0:00:27]} Qe7 {[%emt 0:00:58]} 38. Qe5+ {[%emt 0:00:20]} 1-0

[Event "Torneo Interdepartamental 2020"]
[Site "Punta del Este"]
[Date "2020.11.02"]
[Round "5.10"]
[White "Coppola, Claudio"]
[Black "De los Reyes, Mauro"]
[Result "1-0"]
[ECO "D10"]
[WhiteElo "2278"]
[BlackElo "1763"]
[Annotator "ChessBase"]
[PlyCount "62"]
[EventDate "2020.10.31"]
[EventType "team-tourn"]
[EventCountry "URU"]
[SourceTitle "playchess.com"]
[Source "ChessBase"]
[SourceQuality "1"]
[TimeControl "3600+30"]

1. d4 {[%emt 0:05:12]} d5 {[%emt 0:00:00]} 2. c4 {[%emt 0:00:06]} c6 {[%emt 0:00:00]} 3. cxd5 {[%emt 0:00:04]} cxd5 {[%emt 0:00:00]} 4. Nc3 {[%emt 0:00:04]} Nf6 {[%emt 0:00:29]} 5. f3 {[%emt 0:00:27]} Nc6 {[%emt 0:00:23]} 6. e4 {[%emt 0:00:24]} dxe4 {[%emt 0:00:28]} 7. d5 {[%emt 0:00:07]} Ne5 {[%emt 0:01:09]} 8. fxe4 {[%emt 0:01:05]} a6 {[%emt 0:00:37]} 9. Bf4 {[%emt 0:01:14]} Ng6 {[%emt 0:00:18]} 10. Bg3 {[%emt 0:00:02]} e5 {[%emt 0:02:26]} 11. dxe6 {[%emt 0:08:18]} Qxd1+ {[%emt 0:01:06]} 12. Rxd1 {[%emt 0:00:02]} Bxe6 {[%emt 0:00:07]} 13. Nf3 {[%emt 0:03:18]} Bb4 {[%emt 0:00:52]} 14. Bd3 {[%emt 0:03:31]} Bxc3+ {[%emt 0:00:38]} 15. bxc3 {[%emt 0:00:02]} Rc8 {[%emt 0:01:23]} 16. Bd6 {[%emt 0:11:00]} Bxa2 {[%emt 0:04:13]} 17. Kd2 {[%emt 0:05:18]} Rd8 {[%emt 0:04:15]} 18. e5 {[%emt 0:00:51]} Ng4 {[%emt 0:00:20]} 19. Rhf1 {[%emt 0:08:40]} Bd5 {[%emt 0:02:51]} 20. Rde1 {[%emt 0:04:59]} Kd7 {[%emt 0:02:23]} 21. c4 {[%emt 0:01:48]} Be6 {[%emt 0:01:02]} 22. Rb1 {[%emt 0:02:21]} Kc8 {[%emt 0:00:24]} 23. c5 {[%emt 0:01:37]} Bd5 {[%emt 0:00:52]} 24. Bf5+ {[%emt 0:01:03]} Be6 {[%emt 0:00:22]} 25. Be4 {[%emt 0:00:24]} b5 {[%emt 0:01:51]} 26. cxb6 {[%emt 0:01:41]} Rxd6+ {[%emt 0:00:29]} 27. exd6 {[%emt 0:00:09]} Rd8 {[%emt 0:00:30]} 28. b7+ {[%emt 0:01:56]} Kb8 {[%emt 0:00:09]} 29. Rb6 {[%emt 0:00:05]} Bc4 {[%emt 0:01:28]} 30. Rc1 {[%emt 0:00:23]} Bb5 {[%emt 0:02:25]} 31. Bf5 {[%emt 0:00:11]} Ka7 {[%emt 0:00:47]} 1-0

[Event "Torneo Interdepartamental 2020"]
[Site "Punta del Este"]
[Date "2020.11.02"]
[Round "5.11"]
[White "Gatti, Santiago"]
[Black "Chamlian, Aram"]
[Result "0-1"]
[ECO "D02"]
[WhiteElo "1691"]
[BlackElo "1710"]
[Annotator "NA"]
[PlyCount "58"]
[EventDate "2020.10.31"]
[EventType "team-tourn"]
[EventCountry "URU"]
[SourceTitle "playchess.com"]
[Source "ChessBase"]
[SourceQuality "1"]
[TimeControl "3600+30"]

1. d4 {[%emt 0:00:10]} d5 {[%emt 0:06:55]} 2. Nf3 {[%emt 0:00:08]} Nf6 {[%emt 0:00:38]} 3. Bf4 {[%emt 0:00:15]} e6 {[%emt 0:01:12]} 4. e3 {[%emt 0:00:17]} Bd6 {[%emt 0:01:05]} 5. Bg3 {[%emt 0:00:19]} O-O {[%emt 0:00:19]} 6. Bd3 {[%emt 0:00:19]} Nbd7 {[%emt 0:01:17]} 7. Nbd2 {[%emt 0:00:18]} Re8 {[%emt 0:00:50]} 8. Ne5 {[%emt 0:00:55]} Nf8 {[%emt 0:00:24]} 9. O-O {[%emt 0:01:37]} N6d7 {[%emt 0:01:46]} 10. f4 {[%emt 0:16:56]} f6 {[%emt 0:01:48]} 11. Nxd7 {[%emt 0:02:25]} Bxd7 {[%emt 0:00:27]} 12. Nf3 {[%emt 0:00:35]} c5 {[%emt 0:01:58]} 13. c3 {[%emt 0:00:18]} c4 {[%emt 0:01:43]} 14. Bc2 {[%emt 0:00:23]} b5 {[%emt 0:00:05]} 15. e4 {[%emt 0:08:42]} f5 {[%emt 0:04:44]} 16. exf5 {[%emt 0:06:50]} exf5 {[%emt 0:00:21]} 17. Ne5 {[%emt 0:00:17]} Bxe5 {[%emt 0:01:54]} 18. fxe5 {[%emt 0:00:22]} g6 {[%emt 0:00:46]} 19. Qf3 {[%emt 0:02:16]} Bc6 {[%emt 0:00:21]} 20. Bxf5 {[%emt 0:14:20]} gxf5 {[%emt 0:01:33]} 21. Qxf5 {[%emt 0:00:05]} Qe7 {[%emt 0:00:14]} 22. Rf4 {[%emt 0:11:11]} Ng6 {[%emt 0:01:11]} 23. Rg4 {[%emt 0:01:53]} Bd7 {[%emt 0:00:14]} 24. e6 {[%emt 0:00:36]} Bxe6 {[%emt 0:00:21]} 25. Rxg6+ {[%emt 0:00:28]} hxg6 {[%emt 0:00:10]} 26. Qxg6+ {[%emt 0:00:05]} Qg7 {[%emt 0:00:08]} 27. Qh5 {[%emt 0:00:43]} Bf7 {[%emt 0:00:51]} 28. Qh4 {[%emt 0:00:26]} Re4 {[%emt 0:00:16]} 29. Qh3 {[%emt 0:00:47]} Qg5 0-1

[Event "Torneo Interdepartamental 2020"]
[Site "Punta del Este"]
[Date "2020.11.02"]
[Round "5.12"]
[White "Zecharies, Alexis"]
[Black "Delbono, Ruben"]
[Result "1-0"]
[ECO "D00"]
[WhiteElo "1823"]
[BlackElo "1573"]
[Annotator "NA"]
[PlyCount "43"]
[EventDate "2020.10.31"]
[EventType "team-tourn"]
[EventCountry "URU"]
[SourceTitle "playchess.com"]
[Source "ChessBase"]
[SourceQuality "1"]
[TimeControl "3600+30"]

1. d4 d5 {[%emt 0:00:00]} 2. Bf4 {[%emt 0:07:42]} Nf6 {[%emt 0:01:24]} 3. Nc3 {[%emt 0:00:05]} g6 {[%emt 0:00:33]} 4. e3 {[%emt 0:00:41]} Bg7 {[%emt 0:00:27]} 5. h4 {[%emt 0:00:02]} Nc6 6. Nb5 {[%emt 0:06:07]} O-O {[%emt 0:04:33]} 7. Nxc7 {[%emt 0:01:31]} Nh5 {[%emt 0:00:19]} 8. Bh2 {[%emt 0:01:06]} e5 {[%emt 0:00:48]} 9. Nxa8 {[%emt 0:01:56]} Qa5+ {[%emt 0:02:51]} 10. Qd2 {[%emt 0:06:06]} Qxd2+ {[%emt 0:00:14]} 11. Kxd2 {[%emt 0:00:01]} Bd7 {[%emt 0:00:28]} 12. Nc7 {[%emt 0:00:30]} exd4 {[%emt 0:01:34]} 13. Nxd5 {[%emt 0:04:00]} dxe3+ {[%emt 0:00:45]} 14. Nxe3 {[%emt 0:00:02]} Be6 {[%emt 0:02:45]} 15. Nf3 {[%emt 0:08:22]} Rd8+ {[%emt 0:04:30]} 16. Bd3 {[%emt 0:00:08]} Nf6 {[%emt 0:01:39]} 17. Ke2 {[%emt 0:01:28]} Nd5 {[%emt 0:05:47]} 18. Nxd5 {[%emt 0:04:20]} Bxd5 {[%emt 0:00:15]} 19. Rhe1 {[%emt 0:00:28]} Bxb2 {[%emt 0:02:36]} 20. Rab1 {[%emt 0:00:01]} Bc3 {[%emt 0:00:25]} 21. Red1 {[%emt 0:00:02]} Re8+ {[%emt 0:00:47]} 22. Kf1 {[%emt 0:00:02]} 1-0